bitfinex-derivatives/quotes_BTCF0:USTF0_20241006
["timestamp","ask_amount","ask_price","bid_price","bid_amount"]
[1728204120461,0.537673,62038.0,62037.0,0.13837435]
[1728204121560,0.176873,62038.0,62037.0,0.13837435]
[1728204121761,0.537673,62038.0,62037.0,0.13837435]
[1728204122259,0.537673,62038.0,62037.0,0.2186607]
[1728204122749,0.537673,62038.0,62037.0,0.13837435]
[1728204122750,0.427673,62038.0,62037.0,0.13837435]
[1728204123061,0.427673,62038.0,62037.0,0.13790941]
[1728204123760,0.427673,62038.0,62037.0,0.24790941]
[1728204126251,0.427673,62038.0,62037.0,0.328167]
[1728204126556,0.427673,62038.0,62037.0,0.24790941]
[1728204126762,0.427673,62038.0,62037.0,0.13790941]
[1728204127159,0.066873,62038.0,62037.0,0.21816518]
[1728204127363,0.427673,62038.0,62037.0,0.21816518]
[1728204127554,0.066873,62038.0,62037.0,0.21816518]
[1728204127754,0.427673,62038.0,62037.0,0.21816518]
[1728204128660,0.066873,62038.0,62037.0,0.21816518]
[1728204128870,0.066873,62038.0,62037.0,0.13790941]
[1728204128871,0.427673,62038.0,62037.0,0.13790941]
[1728204130571,0.066873,62038.0,62037.0,0.13790941]
[1728204131268,0.427673,62038.0,62037.0,0.13790941]
[1728204131659,0.066873,62038.0,62037.0,0.13790941]
[1728204132255,0.427673,62038.0,62037.0,0.13790941]
[1728204133774,0.427673,62038.0,62037.0,0.02326534]
[1728204133775,0.45880853,62038.0,62037.0,0.02326534]
[1728204133967,0.09800853,62038.0,62037.0,0.02326534]
[1728204134163,0.45880853,62038.0,62037.0,0.02326534]
[1728204134361,0.09800853,62038.0,62037.0,0.02326534]
[1728204134566,0.45880853,62038.0,62037.0,0.02326534]
[1728204134962,0.09800853,62038.0,62037.0,0.02326534]
[1728204135166,0.45880853,62038.0,62037.0,0.02326534]
[1728204136057,0.13748022,62038.0,62037.0,0.02326534]
[1728204136565,0.49828022,62038.0,62037.0,0.02326534]
[1728204136967,0.13748022,62038.0,62037.0,0.02326534]
[1728204137171,0.49828022,62038.0,62037.0,0.02326534]
[1728204137869,0.13748022,62038.0,62037.0,0.02326534]
[1728204138059,0.49828022,62038.0,62037.0,0.02326534]
[1728204138972,0.13748022,62038.0,62037.0,0.02326534]
[1728204139362,0.49828022,62038.0,62037.0,0.02326534]
[1728204139765,0.13748022,62038.0,62037.0,0.02326534]
[1728204140368,0.49828022,62038.0,62037.0,0.02326534]
[1728204140573,0.13748022,62038.0,62037.0,0.02326534]
[1728204140771,0.066873,62038.0,62037.0,0.27492152]
[1728204140986,0.427673,62038.0,62037.0,0.27492152]
[1728204141166,0.066873,62038.0,62037.0,0.27492152]
[1728204141361,0.427673,62038.0,62037.0,0.27492152]
[1728204142274,0.427673,62038.0,62037.0,0.27529477]
[1728204142968,0.066873,62038.0,62037.0,0.27529477]
[1728204143368,0.427673,62038.0,62037.0,0.27529477]
[1728204144764,0.066873,62038.0,62037.0,0.27529477]
[1728204145679,0.427673,62038.0,62037.0,0.27529477]
[1728204145977,0.066873,62038.0,62037.0,0.27529477]
[1728204146180,0.427673,62038.0,62037.0,0.27529477]
[1728204146373,0.066873,62038.0,62037.0,0.27529477]
[1728204146579,0.427673,62038.0,62037.0,0.27529477]
[1728204146964,0.430303,62038.0,62037.0,0.27529477]
[1728204147168,0.430303,62038.0,62037.0,0.27530019]
[1728204148586,0.02917688,62038.0,62037.0,0.27530019]
[1728204148880,0.55098314,62038.0,62037.0,0.02326534]
[1728204149075,0.51005923,62038.0,62037.0,0.02326534]
[1728204152783,0.67132121,62038.0,62037.0,0.02326534]
[1728204153979,0.51005923,62038.0,62037.0,0.02326534]
[1728204154378,0.65516042,62038.0,62037.0,0.02326534]
[1728204154587,0.65516156,62038.0,62037.0,0.02326534]
[1728204154785,0.51005923,62038.0,62037.0,0.02326534]
[1728204155084,0.65515947,62038.0,62037.0,0.02326534]
[1728204155486,0.65515986,62038.0,62037.0,0.02326534]
[1728204155882,0.33352242,62038.0,62037.0,0.27409783]
[1728204156492,0.064473,62038.0,62037.0,0.27409783]
[1728204163089,0.064473,62038.0,62037.0,0.02326534]
[1728204163290,0.064473,62038.0,62037.0,0.27321521]
[1728204163787,0.064473,62038.0,62037.0,0.38569604]
[1728204164197,0.064473,62038.0,62037.0,0.27321521]
[1728204164679,0.064473,62038.0,62037.0,0.38569604]
[1728204165393,0.3608,62039.0,62037.0,0.65347485]
[1728204165585,0.3608,62039.0,62038.0,0.47242966]
[1728204166296,0.3608,62039.0,62038.0,0.47179946]
[1728204166908,0.3628,62039.0,62038.0,0.49279946]
[1728204167994,0.002,62039.0,62038.0,0.49279946]
[1728204168303,0.0113,62042.0,62038.0,0.49279946]
[1728204168501,0.0113,62042.0,62041.0,0.1104]
[1728204168808,0.076165,62046.0,62041.0,0.35983956]
[1728204169009,0.076165,62046.0,62044.0,0.11]
[1728204169214,0.064865,62046.0,62045.0,0.24983956]
[1728204170199,0.070865,62046.0,62045.0,0.24983956]
[1728204170893,0.19092655,62046.0,62045.0,0.0004]
[1728204173215,0.19092655,62046.0,62045.0,0.02327798]
[1728204175906,0.19092653,62046.0,62045.0,0.02327798]
[1728204177209,0.2713118,62046.0,62045.0,0.02327798]
[1728204177415,0.19092653,62046.0,62045.0,0.02327798]
[1728204179018,0.19092653,62046.0,62045.0,0.27217045]
[1728204179019,0.070865,62046.0,62045.0,0.27217045]
[1728204182707,0.180865,62046.0,62045.0,0.27217045]
[1728204184018,0.180865,62046.0,62045.0,0.27224938]
[1728204185923,0.116,62046.0,62045.0,0.27224938]
[1728204186121,0.23606489,62046.0,62045.0,0.02327798]
[1728204186430,0.30052994,62046.0,62045.0,0.02327798]
[1728204186617,0.25106202,62046.0,62045.0,0.02327798]
[1728204187522,0.30052954,62046.0,62045.0,0.02327798]
[1728204187912,0.14106202,62046.0,62045.0,0.13327798]
[1728204188821,0.1410615,62046.0,62045.0,0.13327798]
[1728204189127,0.1410615,62046.0,62045.0,0.02327798]
[1728204193718,0.14106129,62046.0,62045.0,0.02327798]
[1728204194128,0.070465,62046.0,62045.0,0.27149616]
[1728204195936,0.073095,62046.0,62045.0,0.27149616]
[1728204201128,0.073095,62046.0,62045.0,0.02327798]
[1728204201129,0.19315899,62046.0,62045.0,0.02327798]
[1728204207238,0.25096142,62046.0,62045.0,0.02327798]
[1728204208341,0.25096146,62046.0,62045.0,0.02327798]
[1728204208843,0.25096137,62046.0,62045.0,0.02327798]
[1728204209029,0.25096137,62046.0,62045.0,0.27166646]
[1728204209030,0.073095,62046.0,62045.0,0.27166646]
[1728204213347,0.073095,62046.0,62045.0,0.27168226]
[1728204214336,0.073095,62046.0,62045.0,0.24880428]
[1728204214841,0.433895,62046.0,62045.0,0.24880428]
[1728204215947,0.433895,62046.0,62045.0,0.1137251]
[1728204221049,0.433895,62046.0,62045.0,0.24878364]
[1728204221450,0.433895,62046.0,62045.0,0.1137251]
[1728204221646,0.433895,62046.0,62045.0,0.24879215]
[1728204221846,0.433895,62046.0,62045.0,0.1137251]
[1728204222446,0.433895,62046.0,62045.0,0.24881667]
[1728204222447,0.427895,62046.0,62045.0,0.24881667]
[1728204223244,0.427895,62046.0,62045.0,0.0004]
[1728204223444,0.427895,62046.0,62045.0,0.24793047]
[1728204224249,0.54795975,62046.0,62045.0,0.0004]
[1728204228941,0.45902598,62046.0,62045.0,0.0004]
[1728204229149,0.03376098,62046.0,62045.0,0.1104]
[1728204229473,0.0004,62048.0,62047.0,0.064464]
[1728204229756,0.0004,62048.0,62047.0,0.07240712]
[1728204229947,0.0004,62048.0,62047.0,0.07280712]
[1728204230147,0.03986157,62048.0,62047.0,0.07280712]
[1728204230853,0.04286157,62048.0,62047.0,0.07280712]
[1728204231258,0.0076,62052.0,62047.0,0.41163387]
[1728204231449,0.0076,62055.0,62051.0,0.1104]
[1728204231650,0.064455,62056.0,62053.0,0.0004]
[1728204231851,0.064455,62056.0,62053.0,0.24761093]
[1728204232650,0.3708,62054.0,62053.0,0.24728126]
[1728204233860,0.3708,62054.0,62053.0,0.24828126]
[1728204234755,0.3708,62054.0,62053.0,0.24928126]
[1728204236768,0.3708,62054.0,62053.0,0.27235911]
[1728204237155,0.01,62054.0,62053.0,0.27235911]
[1728204237464,0.074456,62054.0,62053.0,0.27235911]
[1728204238164,0.074456,62054.0,62053.0,0.27231017]
[1728204238462,0.074456,62054.0,62053.0,0.13810813]
[1728204239255,0.074456,62054.0,62053.0,0.02307785]
[1728204239256,0.11391725,62054.0,62053.0,0.02307785]
[1728204239458,0.19450654,62054.0,62051.0,0.11]
[1728204239668,0.1778465,62053.0,62051.0,0.11]
[1728204239963,0.12005054,62052.0,62051.0,0.11]
[1728204240165,0.12045054,62052.0,62051.0,0.11]
[1728204240754,0.12045054,62052.0,62051.0,0.111]
[1728204241361,0.07098854,62052.0,62051.0,0.111]
[1728204241869,0.07098854,62052.0,62051.0,0.112]
[1728204242368,0.07898854,62052.0,62051.0,0.112]
[1728204242858,0.08098854,62052.0,62051.0,0.112]
[1728204245167,0.08361854,62052.0,62051.0,0.112]
[1728204246267,0.01303,62052.0,62051.0,0.22593998]
[1728204246470,0.064456,62054.0,62051.0,0.29039898]
[1728204246669,0.064456,62054.0,62053.0,0.0004]
[1728204246871,0.064456,62054.0,62053.0,0.11433998]
[1728204247868,0.065456,62054.0,62053.0,0.11433998]
[1728204248172,0.071456,62054.0,62053.0,0.11533998]
[1728204249971,0.071456,62054.0,62053.0,0.11633998]
[1728204249972,0.070456,62054.0,62053.0,0.11633998]
[1728204250566,0.070456,62054.0,62053.0,0.11626665]
[1728204252474,0.006,62054.0,62053.0,0.11626665]
[1728204254470,0.006,62054.0,62053.0,0.0024]
[1728204256579,0.006,62054.0,62053.0,0.08274905]
[1728204257466,0.006,62054.0,62053.0,0.19671892]
[1728204258576,0.006,62054.0,62053.0,0.11636987]
[1728204261374,0.006,62054.0,62049.0,0.02705666]
[1728204261375,0.12604671,62054.0,62049.0,0.02705666]
[1728204261577,0.0004,62050.0,62049.0,0.09151766]
[1728204261876,0.07098629,62050.0,62049.0,0.08771766]
[1728204262278,0.12044671,62050.0,62049.0,0.08771766]
[1728204262880,0.2543324,62050.0,62049.0,0.08871766]
[1728204263081,0.30379282,62050.0,62049.0,0.08871766]
[1728204263673,0.30379282,62050.0,62049.0,0.19871766]
[1728204264788,0.12644671,62050.0,62049.0,0.19871766]
[1728204265173,0.12644764,62050.0,62049.0,0.19871766]
[1728204269386,0.0004,62050.0,62049.0,0.44975125]
[1728204273295,0.17632435,62055.0,62049.0,0.44975125]
[1728204273296,0.17632435,62055.0,62051.0,0.064459]
[1728204273492,0.17632435,62055.0,62052.0,0.25203359]
[1728204273493,0.16872435,62055.0,62052.0,0.25203359]
[1728204273679,0.16872435,62055.0,62054.0,0.0004]
[1728204273879,0.16122435,62055.0,62054.0,0.25243359]
[1728204275077,0.16122435,62055.0,62054.0,0.25245762]
[1728204275985,0.16722435,62055.0,62054.0,0.25245762]
[1728204276490,0.28727235,62055.0,62051.0,0.12113915]
[1728204276685,0.0004,62052.0,62051.0,0.12113915]
[1728204276993,0.03152663,62052.0,62051.0,0.11363915]
[1728204277293,0.120448,62052.0,62051.0,0.11263915]
[1728204277488,0.120448,62052.0,62051.0,0.17709815]
[1728204277884,0.122448,62052.0,62051.0,0.17709815]
[1728204278590,0.122448,62052.0,62051.0,0.064459]
[1728204283502,0.0024,62052.0,62051.0,0.31698763]
[1728204284597,0.0024,62052.0,62051.0,0.17992181]
[1728204284791,0.0024,62052.0,62051.0,0.17994643]
[1728204291306,0.0075,62055.0,62051.0,0.17994643]
[1728204291502,0.1200489,62054.0,62049.0,0.07250801]
[1728204291798,0.0004,62050.0,62049.0,0.13696901]
[1728204292012,0.07098758,62050.0,62049.0,0.13696901]
[1728204292393,0.1204489,62050.0,62049.0,0.13696901]
[1728204294599,0.1204489,62050.0,62049.0,0.16662488]
[1728204298599,0.0113,62055.0,62049.0,0.76238314]
[1728204298803,0.0113,62055.0,62054.0,0.11303511]
[1728204298804,0.075756,62055.0,62054.0,0.11303511]
[1728204299102,0.064456,62055.0,62054.0,0.52683167]
[1728204300101,0.069456,62055.0,62054.0,0.52683167]
[1728204302609,0.069456,62055.0,62054.0,0.52783167]
[1728204302805,0.069456,62055.0,62054.0,0.53008948]
[1728204303311,0.005,62055.0,62054.0,0.53008948]
[1728204303506,0.069456,62055.0,62054.0,0.25643483]
[1728204305811,0.179456,62055.0,62054.0,0.25643483]
[1728204306305,0.540256,62055.0,62054.0,0.25643483]
[1728204306710,0.540256,62055.0,62054.0,0.0014]
[1728204307708,0.06446,62050.0,62048.0,0.10034612]
[1728204307908,0.06446,62050.0,62045.0,0.0004]
[1728204307909,0.11,62050.0,62045.0,0.0042]
[1728204308102,0.48348,62049.0,62045.0,0.0004]
[1728204308303,0.064462,62048.0,62045.0,0.0004]
[1728204308608,0.547942,62048.0,62045.0,0.0004]
[1728204308800,0.48352,62047.0,62042.0,0.10034612]
[1728204309000,0.064467,62044.0,62043.0,0.02506903]
[1728204309204,0.064467,62044.0,62039.0,0.0038]
[1728204309205,0.064469,62042.0,62041.0,0.09694612]
[1728204309410,0.064469,62042.0,62038.0,0.0004]
[1728204309411,0.0004,62042.0,62038.0,0.0004]
[1728204309610,0.064872,62039.0,62038.0,0.0004]
[1728204311008,0.095972,62039.0,62038.0,0.0004]
[1728204311209,0.095972,62039.0,62038.0,0.0144]
[1728204312003,0.12509488,62039.0,62038.0,0.0144]
[1728204312209,0.12509488,62039.0,62038.0,0.09267065]
[1728204312411,0.15509488,62039.0,62038.0,0.09267065]
[1728204312599,0.125972,62039.0,62038.0,0.09267065]
[1728204313204,0.125972,62039.0,62038.0,0.0284]
[1728204313707,0.19657539,62039.0,62038.0,0.0284]
[1728204315311,0.15710584,62039.0,62038.0,0.0284]
[1728204316907,0.15710583,62039.0,62038.0,0.0284]
[1728204320313,0.26710583,62039.0,62038.0,0.0284]
[1728204320516,0.15710583,62039.0,62038.0,0.0284]
[1728204320812,0.26710583,62039.0,62038.0,0.0284]
[1728204321020,0.23600583,62039.0,62038.0,0.0284]
[1728204321707,0.204872,62039.0,62038.0,0.0284]
[1728204324315,0.204872,62039.0,62038.0,0.14310416]
[1728204326423,0.204872,62039.0,62038.0,0.14311303]
[1728204328623,0.27547539,62039.0,62038.0,0.0284]
[1728204328922,0.23600584,62039.0,62038.0,0.0284]
[1728204329227,0.12600584,62039.0,62038.0,0.0284]
[1728204329428,0.23600584,62039.0,62038.0,0.0284]
[1728204329936,0.27547539,62039.0,62038.0,0.0284]
[1728204331824,0.24547539,62039.0,62038.0,0.0284]
[1728204334317,0.29494817,62039.0,62038.0,0.0284]
[1728204334626,1.13930817,62039.0,62038.0,0.0284]
[1728204335020,0.65574817,62039.0,62038.0,0.0284]
[1728204335327,1.73930817,62039.0,62038.0,0.0284]
[1728204335920,1.73932781,62039.0,62038.0,0.0284]
[1728204336731,1.619232,62039.0,62038.0,0.0284]
[1728204337628,1.980032,62039.0,62038.0,0.0284]
[1728204342533,1.258432,62039.0,62038.0,0.0284]
[1728204342729,1.380032,62039.0,62038.0,0.0284]
[1728204343031,1.382662,62039.0,62038.0,0.0284]
[1728204343237,0.064473,62038.0,62037.0,0.00026534]
[1728204343426,0.064873,62038.0,62037.0,0.00026534]
[1728204343736,0.18496978,62038.0,62037.0,0.00026534]
[1728204344032,0.34598855,62038.0,62037.0,0.00026534]
[1728204344420,1.42954855,62038.0,62037.0,0.00026534]
[1728204344825,1.43054855,62038.0,62037.0,0.01026534]
[1728204345530,1.43154855,62038.0,62037.0,0.02326534]
[1728204345930,2.15314855,62038.0,62037.0,0.02326534]
[1728204346231,2.26314855,62038.0,62037.0,0.02326534]
[1728204347627,1.66314855,62038.0,62037.0,0.02326534]
[1728204349533,2.26314855,62038.0,62037.0,0.02326534]
[1728204349939,1.54154855,62038.0,62037.0,0.02326534]
[1728204350140,2.26314855,62038.0,62037.0,0.02326534]
[1728204350338,2.15314855,62038.0,62037.0,0.02326534]
[1728204350640,1.66314855,62038.0,62037.0,0.02326534]
[1728204351037,0.45798855,62038.0,62037.0,0.02326534]
[1728204351338,1.17958855,62038.0,62037.0,0.02326534]
[1728204351732,0.898473,62038.0,62037.0,0.02326534]
[1728204353543,0.898473,62038.0,62037.0,0.08760496]
[1728204354345,0.898473,62038.0,62037.0,0.02326534]
[1728204357045,0.176873,62038.0,62037.0,0.02326534]
[1728204357243,0.898473,62038.0,62037.0,0.02326534]
[1728204358345,0.4732,62038.0,62037.0,0.02326534]
[1728204358535,0.537673,62038.0,62037.0,0.02326534]
[1728204358732,0.65776534,62038.0,62037.0,0.02326534]
[1728204358936,0.54776534,62038.0,62037.0,0.02326534]
[1728204359135,0.81878479,62038.0,62037.0,0.02326534]
[1728204359337,0.8188054,62038.0,62037.0,0.02326534]
[1728204359739,0.84994375,62038.0,62037.0,0.02326534]
[1728204359935,0.81880562,62038.0,62037.0,0.02326534]
[1728204360547,0.65776556,62038.0,62037.0,0.02326534]
[1728204361541,1.01856556,62038.0,62037.0,0.02326534]
[1728204363033,0.898473,62038.0,62037.0,0.02326534]
[1728204363236,1.01856549,62038.0,62037.0,0.02326534]
[1728204364241,1.07638167,62038.0,62037.0,0.02326534]
[1728204364446,1.25374891,62038.0,62037.0,0.02326534]
[1728204364636,1.19593273,62038.0,62037.0,0.02326534]
[1728204364840,1.01856549,62038.0,62037.0,0.02326534]
[1728204366743,0.898473,62038.0,62037.0,0.23495303]
[1728204368036,0.898473,62038.0,62037.0,0.13840691]
[1728204368249,0.898473,62038.0,62037.0,0.23505247]
[1728204368545,0.898473,62038.0,62037.0,0.13840691]
[1728204368751,0.898473,62038.0,62037.0,0.23505077]
[1728204369350,0.898473,62038.0,62037.0,0.13840691]
[1728204370346,0.788473,62038.0,62037.0,0.13840691]
[1728204370652,0.788473,62038.0,62037.0,0.27552638]
[1728204371749,0.427673,62038.0,62037.0,0.27552638]
[1728204372550,0.427673,62038.0,62037.0,0.27530052]
[1728204372954,0.066873,62038.0,62037.0,0.27530052]
[1728204373150,0.427673,62038.0,62037.0,0.27530052]
[1728204376849,0.066873,62038.0,62037.0,0.27530052]
[1728204377155,0.427673,62038.0,62037.0,0.27530052]
[1728204377355,0.427673,62038.0,62037.0,0.27528054]
[1728204378251,0.427673,62038.0,62037.0,0.23481147]
[1728204378445,0.427673,62038.0,62037.0,0.13823779]
[1728204379555,0.427673,62038.0,62037.0,0.27524806]
[1728204379556,0.30674226,62038.0,62037.0,0.27524806]
[1728204379941,0.2583521,62038.0,62037.0,0.27524806]
[1728204381957,0.37843059,62038.0,62037.0,0.02326534]
[1728204383256,0.37843059,62038.0,62037.0,0.05178167]
[1728204384152,0.12007849,62038.0,62037.0,0.05178167]
[1728204385055,0.19216403,62038.0,62037.0,0.05178167]
[1728204385255,0.28110798,62038.0,62037.0,0.05178167]
[1728204386845,0.39110798,62038.0,62037.0,0.05178167]
[1728204388259,0.2878882,62038.0,62037.0,0.05178167]
[1728204388548,0.40744573,62038.0,62037.0,0.05178167]
[1728204388950,0.28736724,62038.0,62037.0,0.30279308]
[1728204390246,0.11,62038.0,62037.0,0.30279308]
[1728204390649,0.0004,62039.0,62037.0,0.41279308]
[1728204390855,0.0004,62039.0,62038.0,0.25141141]
[1728204392254,0.0014,62039.0,62038.0,0.25141141]
[1728204392454,0.0014,62039.0,62038.0,0.26241141]
[1728204393055,0.0024,62039.0,62038.0,0.26241141]
[1728204394149,0.0024,62039.0,62038.0,0.37241141]
[1728204394357,0.0014,62039.0,62038.0,0.38541141]
[1728204394658,0.0024,62039.0,62038.0,0.27541141]
[1728204396659,0.0024,62039.0,62038.0,0.27434721]
[1728204401354,0.0024,62039.0,62038.0,0.27445548]
[1728204403055,0.02654632,62040.0,62038.0,0.27445548]
[1728204403258,0.02654632,62040.0,62039.0,0.25045548]
[1728204403960,0.02654632,62040.0,62039.0,0.1144784]
[1728204404161,0.02754632,62040.0,62039.0,0.0004]
[1728204404563,0.02754632,62040.0,62039.0,0.0114]
[1728204404863,0.24408402,62040.0,62039.0,0.0114]
[1728204405161,0.17347925,62040.0,62039.0,0.0114]
[1728204405861,0.02754632,62040.0,62039.0,0.0114]
[1728204406163,0.06801664,62040.0,62039.0,0.0234]
[1728204407161,0.14862446,62040.0,62039.0,0.0234]
[1728204407665,0.02854632,62040.0,62039.0,0.0234]
[1728204417478,0.12362,62042.0,62039.0,0.27300676]
[1728204417774,0.546969,62042.0,62041.0,0.0004]
[1728204417977,0.535669,62042.0,62041.0,0.25000676]
[1728204418170,0.535669,62042.0,62041.0,0.25000635]
[1728204419076,0.536669,62042.0,62041.0,0.25000635]
[1728204419372,0.81778412,62042.0,62041.0,0.0004]
[1728204419673,0.45698412,62042.0,62041.0,0.0104]
[1728204419866,0.81878412,62042.0,62041.0,0.0104]
[1728204420373,0.81778412,62042.0,62041.0,0.0104]
[1728204420574,0.45798412,62042.0,62041.0,0.0224]
[1728204420772,0.81878412,62042.0,62041.0,0.0224]
[1728204422383,0.45798412,62042.0,62041.0,0.0224]
[1728204422668,0.81878412,62042.0,62041.0,0.0224]
[1728204424179,0.45798412,62042.0,62041.0,0.0224]
[1728204424375,0.81878412,62042.0,62041.0,0.0224]
[1728204426475,0.427669,62042.0,62041.0,0.27151719]
[1728204428675,0.066869,62042.0,62041.0,0.27151719]
[1728204428872,0.427669,62042.0,62041.0,0.27151719]
[1728204431487,0.427669,62042.0,62041.0,0.27130898]
[1728204431875,0.537669,62042.0,62041.0,0.27130898]
[1728204434480,0.65774391,62042.0,62041.0,0.0224]
[1728204437988,0.48327491,62042.0,62041.0,0.0224]
[1728204438190,0.48327491,62042.0,62041.0,0.08687]
[1728204438693,0.12510491,62042.0,62041.0,0.08687]
[1728204441480,0.00503,62042.0,62041.0,0.3355424]
[1728204445897,0.00503,62042.0,62041.0,0.20031519]
[1728204446094,0.00503,62042.0,62041.0,0.33553751]
[1728204447405,0.11,62045.0,62041.0,0.33553751]
[1728204447601,0.174466,62045.0,62044.0,0.0004]
[1728204447908,0.174466,62045.0,62044.0,0.24906751]
[1728204449502,0.1200688,62045.0,62044.0,0.064467]
[1728204449694,0.1210688,62045.0,62044.0,0.174467]
[1728204450192,0.1220688,62045.0,62044.0,0.064467]
[1728204450394,0.1210688,62045.0,62044.0,0.064467]
[1728204450702,0.12206608,62045.0,62044.0,0.080467]
[1728204451301,0.23206608,62045.0,62044.0,0.080467]
[1728204454403,0.23206608,62045.0,62044.0,0.05168634]
[1728204455303,0.23206608,62045.0,62044.0,0.08064733]
[1728204456595,0.07167918,62045.0,62044.0,0.33041183]
[1728204460313,0.07167918,62045.0,62044.0,0.32997752]
[1728204464508,0.07167918,62045.0,62044.0,0.27485257]
[1728204466908,0.064464,62047.0,62044.0,0.27485257]
[1728204467106,0.064464,62047.0,62046.0,0.0004]
[1728204469519,0.064464,62047.0,62046.0,0.0044]
[1728204469709,0.064464,62047.0,62046.0,0.0074]
[1728204471517,0.064464,62047.0,62040.0,0.05302068]
[1728204471518,0.18453059,62047.0,62040.0,0.05302068]
[1728204471711,0.0004,62041.0,62040.0,0.11749168]
[1728204471915,0.07099798,62041.0,62040.0,0.11749168]
[1728204472112,0.12046659,62041.0,62040.0,0.11749168]
[1728204472706,0.12046659,62041.0,62040.0,0.12649168]
[1728204473119,0.12146659,62041.0,62040.0,0.13349168]
[1728204473517,0.12146659,62041.0,62039.0,0.3612]
[1728204473518,0.12146659,62041.0,62027.0,0.00241827]
[1728204473519,0.48356,62040.0,62027.0,0.00241827]
[1728204473717,0.48356,62040.0,62032.0,0.0004]
[1728204473718,0.174478,62033.0,62032.0,0.0004]
[1728204473931,0.29494459,62033.0,62032.0,0.0004]
[1728204474114,1.37854459,62033.0,62032.0,0.0004]
[1728204474318,1.4363496,62033.0,62032.0,0.0004]
[1728204475428,1.46483842,62033.0,62032.0,0.0004]
[1728204475734,1.4363496,62033.0,62032.0,0.0004]
[1728204476227,1.4373496,62033.0,62032.0,0.0004]
[1728204476417,1.4383496,62033.0,62032.0,0.0004]
[1728204476625,1.7991496,62033.0,62032.0,0.0004]
[1728204477626,1.1991496,62033.0,62032.0,0.0004]
[1728204478027,1.0891496,62033.0,62032.0,0.0004]
[1728204478230,0.6055496,62033.0,62032.0,0.0004]
[1728204478431,1.1991496,62033.0,62032.0,0.0004]
[1728204479523,1.021278,62033.0,62032.0,0.11537733]
[1728204480028,0.0075,62036.0,62032.0,0.87000561]
[1728204480229,0.0038,62039.0,62038.0,0.064473]
[1728204480427,0.064465,62046.0,62038.0,0.064473]
[1728204480428,0.068265,62046.0,62039.0,0.064471]
[1728204480736,0.068265,62046.0,62042.0,0.064468]
[1728204480737,0.0038,62046.0,62042.0,0.064468]
[1728204480920,0.3608,62050.0,62045.0,0.11]
[1728204480921,0.0038,62049.0,62045.0,0.11]
[1728204481117,0.425261,62050.0,62048.0,0.0004]
[1728204481624,0.425261,62050.0,62049.0,0.0004]
[1728204482127,0.535261,62050.0,62049.0,0.0004]
[1728204482634,0.538261,62050.0,62049.0,0.0004]
[1728204484421,0.541261,62050.0,62049.0,0.0004]
[1728204486537,0.180461,62050.0,62049.0,0.0004]
[1728204486925,0.541261,62050.0,62049.0,0.0004]
[1728204488633,0.180461,62050.0,62049.0,0.0004]
[1728204488932,0.541261,62050.0,62049.0,0.0004]
[1728204489541,0.180461,62050.0,62049.0,0.0004]
[1728204489838,0.541261,62050.0,62049.0,0.0004]
[1728204492330,0.541261,62050.0,62049.0,0.19502868]
[1728204492535,0.541261,62050.0,62049.0,0.11474154]
[1728204494740,0.65466458,62050.0,62042.0,0.11]
[1728204494930,0.0004,62043.0,62042.0,0.11]
[1728204495130,0.12046275,62043.0,62042.0,0.11]
[1728204497240,0.12146275,62043.0,62042.0,0.174469]
[1728204497644,0.12246275,62043.0,62042.0,0.174469]
[1728204500243,0.12246275,62043.0,62042.0,0.535269]
[1728204501745,0.02654549,62046.0,62042.0,0.61552482]
[1728204501937,0.02654549,62046.0,62045.0,0.06459739]
[1728204503042,0.02754549,62046.0,62045.0,0.06459739]
[1728204503445,0.02854549,62046.0,62045.0,0.06459739]
[1728204505246,0.02854549,62046.0,62045.0,0.0004]
[1728204508540,0.02854549,62046.0,62045.0,0.19686708]
[1728204509646,0.14860824,62046.0,62042.0,0.40756649]
[1728204509953,0.14860824,62046.0,62044.0,0.11]
[1728204509954,0.12006275,62045.0,62044.0,0.11]
[1728204511250,0.12106275,62045.0,62044.0,0.11]
[1728204512043,0.12206275,62045.0,62044.0,0.11]
[1728204516744,0.002,62045.0,62044.0,0.32360227]
[1728204518254,0.002,62045.0,62044.0,0.22725771]
[1728204518752,0.002,62045.0,62044.0,0.32378457]
[1728204521451,0.002,62045.0,62044.0,0.32385427]
[1728204523661,0.12206614,62045.0,62042.0,0.02682033]
[1728204523862,0.0004,62043.0,62042.0,0.02682033]
[1728204524064,0.12046614,62043.0,62042.0,0.02682033]
[1728204525759,0.12146614,62043.0,62042.0,0.02682033]
[1728204526059,0.09033481,62043.0,62042.0,0.02682033]
[1728204526360,0.07199772,62043.0,62042.0,0.02682033]
[1728204526851,0.12146615,62043.0,62042.0,0.02682033]
[1728204527047,0.12246615,62043.0,62042.0,0.02682033]
[1728204529665,0.04186638,62043.0,62042.0,0.02682033]
[1728204529964,0.07299772,62043.0,62042.0,0.02682033]
[1728204530159,0.12246615,62043.0,62042.0,0.02682033]
[1728204530864,0.0024,62043.0,62042.0,0.02682033]
[1728204532161,0.064446,62064.0,62042.0,0.57815304]
[1728204532355,0.064464,62047.0,62046.0,0.11262101]
[1728204532661,0.174464,62047.0,62046.0,0.25924543]
[1728204534970,0.174464,62047.0,62046.0,0.26024543]
[1728204537170,0.064464,62047.0,62046.0,0.26024543]
[1728204537967,0.064464,62047.0,62046.0,0.25890352]
[1728204539659,0.13506315,62047.0,62046.0,0.001]
[1728204539865,0.18453258,62047.0,62046.0,0.001]
[1728204541073,0.24233722,62047.0,62046.0,0.001]
[1728204546776,0.3608,62048.0,62046.0,0.001]
[1728204546777,0.3608,62048.0,62046.0,0.11853011]
[1728204547076,0.425262,62048.0,62047.0,0.21442167]
[1728204547476,0.425262,62048.0,62047.0,0.11793011]
[1728204548372,0.064462,62048.0,62047.0,0.11793011]
[1728204548573,0.425262,62048.0,62047.0,0.11793011]
[1728204548978,0.064462,62048.0,62047.0,0.11793011]
[1728204549277,0.425262,62048.0,62047.0,0.11793011]
[1728204550477,0.064462,62048.0,62047.0,0.11793011]
[1728204550781,0.425262,62048.0,62047.0,0.11793011]
[1728204551172,0.425262,62048.0,62047.0,0.11765939]
[1728204553477,0.425262,62048.0,62047.0,0.2574373]
[1728204553682,0.425262,62048.0,62047.0,0.11765939]
[1728204554578,0.425262,62048.0,62047.0,0.0004]
[1728204557779,0.064462,62048.0,62047.0,0.0004]
[1728204557978,0.425262,62048.0,62047.0,0.0004]